fUSD/lending_fUSD_20240730
["ID","MTS","AMOUNT","RATE_DAILY","PERIOD"]
[333674094,1722339219089,500.0,0.00026124,120]
[333674095,1722339396620,500.0,0.00027,120]
[333674096,1722339398429,500.0,0.00027,120]
[333674097,1722339399670,500.0,0.00027,120]
[333674098,1722339400638,500.0,0.00027,120]
[333674099,1722339401505,500.0,0.00027,120]
[333674100,1722339402849,500.0,0.00027,120]
[333674101,1722339403661,500.0,0.00027,120]
[333674102,1722339404474,500.0,0.00027,120]
[333674103,1722339405327,500.0,0.00027,120]
[333674104,1722339406072,500.0,0.00027,120]
[333674105,1722339426247,500.0,0.00027,120]
[333674106,1722339473670,499.99999999,0.00027,120]
[333674107,1722339508486,2000.0,0.00027,120]
[333674108,1722339561813,2000.0,0.00027,120]
[333674110,1722339649251,1116.5,0.00027,120]
[333674128,1722339813300,1754.00062124,0.00027,120]
[333674138,1722339921428,376.93167394,0.00025,90]
[333674156,1722340232233,-685.87,8.219e-05,2]
[333674157,1722340232243,-1250.0,0.0001,2]
[333674158,1722340232252,-477.37,0.00010038,2]
[333674159,1722340232262,-522.63,0.00010177,2]
[333674160,1722340232271,-685.87,0.00010479,2]
[333674161,1722340232280,-150.0,0.00010575,2]
[333674162,1722340232289,-150.0,0.00010599,2]
[333674163,1722340232298,-383.80295565,0.000106,2]
[333674164,1722340232308,-395.87526729,0.000106,2]
[333674165,1722340232319,-1746.55062526,0.000106,2]
[333674166,1722340232330,-3504.07490294,0.000106,2]
[333674167,1722340232427,-11024.14423541,0.000106,2]
[333674169,1722340237889,-468.87,0.000106,2]
[333674170,1722340237901,-7177.4150691,0.000106,2]
[333674171,1722340237912,-348.4674,0.000106,2]
[333674172,1722340237924,-425.44,0.000106,2]
[333674173,1722340237933,-150.0,0.000106,2]
[333674174,1722340237943,-350.93691286,0.000106,2]
[333674175,1722340237954,-848.29953247,0.000106,2]
[333674176,1722340237965,-624.63855005,0.000106,2]
[333674177,1722340238154,-3514.96970462,0.000106,2]
[333674178,1722340238163,-1000.0,0.000106,2]
[333674179,1722340238174,-2087.7494,0.000106,2]
[333674180,1722340238183,-150.99,0.0001062,2]
[333674181,1722340238192,-499.99,0.0001062,2]
[333674182,1722340238201,-1314.67,0.0001068,2]
[333674183,1722340238211,-179.99,0.0001068,2]
[333674184,1722340238220,-1073854.51692311,0.000107,2]
[333674203,1722340240037,-2908.02056279,0.000107,2]
[333674205,1722340240090,-489.17891229,0.000107,2]
[333674206,1722340240102,-2029.94529936,0.000107,2]
[333674207,1722340240113,-568.51573474,0.000107,2]
[333674208,1722340240144,-427.8153428,0.000107,2]
[333674209,1722340240250,-7759.32294957,0.000107,2]
[333674210,1722340240304,-1358.30303484,0.000107,2]
[333674231,1722340243090,-4675.74706937,0.000107,2]
[333674232,1722340243128,-467.37891988,0.000107,2]
[333674233,1722340243184,-1377.74172289,0.000107,2]
[333674248,1722340245958,-1993.5738373,0.000107,2]
[333674249,1722340246168,-55731.29889085,0.000107,2]
[333674250,1722340246180,-108331.0542241,0.000107,2]
[333674254,1722340289216,329.81828907,0.00027,120]
[333674257,1722340342720,329.81828907,0.00027,120]
[333674261,1722340395333,500.0,0.00025189,120]
[333674262,1722340395723,500.0,0.00025736,120]
[333674263,1722340396110,500.0,0.00026283,120]
[333674264,1722340397207,500.0,0.00026831,120]
[333674265,1722340401837,1000.0,0.00024932,120]
[333674267,1722340407077,500.0,0.000252,120]
[333674268,1722340407446,500.0,0.000258,120]
[333674269,1722340407829,500.0,0.000264,120]
[333674270,1722340408856,250.608963,0.00026999,120]
[333674271,1722340411913,500.0,0.00026124,120]
[333674274,1722340486824,500.0,0.00027,120]
[333674275,1722340501511,300.0,0.00025,60]
[333674280,1722340706411,-708.46,8.299e-05,2]
[333674281,1722340706434,-618.1,0.00010213,2]
[333674282,1722340706456,-4004.91,0.00010245,2]
[333674283,1722340706478,-250.0,0.00010279,2]
[333674284,1722340706500,-440.86,0.00010354,2]
[333674285,1722340706523,-708.46,0.00010562,2]
[333674286,1722340706549,-3000.0,0.0001059,2]
[333674287,1722340706571,-5981.1014,0.000106,2]
[333674288,1722340706592,-283.914,0.000106,2]
[333674289,1722340706616,-500.1748,0.000106,2]
[333674290,1722340706637,-433.2501,0.000106,2]
[333674291,1722340706659,-150.0,0.00010699,2]
[333674292,1722340706682,-17180160.55035307,0.000107,2]
[333674293,1722340706707,-26681.292,0.000107,2]
[333674294,1722340706733,-43502.0,0.000107,2]
[333674295,1722340706755,-1992.21285711,0.00010899,2]
[333674296,1722340706777,-1412.32316243,0.00010899,2]
[333674297,1722340706800,-151.43,0.000109,2]
[333674298,1722340706821,-1079.38,0.000109,2]
[333674299,1722340706843,-150.0,0.0001092,2]
[333674300,1722340706866,-228.706,0.0001092,2]
[333674301,1722340706889,-2675.908,0.0001092,2]
[333674302,1722340706910,-275.26042723,0.00010958,2]
[333674303,1722340706932,-759.76,0.00010958,2]
[333674304,1722340706954,-759.76,0.00010958,2]
[333674305,1722340706976,-759.76,0.00010958,2]
[333674306,1722340706998,-500.0,0.00010958,2]
[333674307,1722340707021,-500.0,0.00010958,2]
[333674308,1722340707044,-500.0,0.00010958,2]
[333674309,1722340707066,-500.0,0.00010958,2]
[333674310,1722340707089,-500.0,0.00010958,2]
[333674311,1722340707112,-500.0,0.00010958,2]
[333674312,1722340707134,-156.52645422,0.00010958,2]
[333674313,1722340707160,-500.0,0.00010958,2]
[333674314,1722340707183,-565.02,0.00010958,2]
[333674315,1722340707207,-530.09,0.00010958,2]
[333674316,1722340707229,-530.09,0.00010958,2]
[333674317,1722340707252,-530.09,0.00010958,2]
[333674318,1722340707275,-500.0,0.00010958,2]
[333674319,1722340707300,-500.0,0.00010958,2]
[333674320,1722340707322,-500.0,0.00010958,2]
[333674321,1722340707344,-500.0,0.00010958,2]
[333674322,1722340707365,-500.0,0.00010958,2]
[333674323,1722340707388,-627.3018764,0.00010958,2]
[333674324,1722340707410,-333.98664,0.00010958,2]
[333674325,1722340707432,-500.0,0.00010958,2]
[333674326,1722340707453,-345.44,0.00010958,2]
[333674327,1722340707476,-500.0,0.00010958,2]
[333674328,1722340707499,-500.0,0.00010958,2]
[333674329,1722340707522,-500.0,0.00010958,2]
[333674330,1722340707545,-500.0,0.00010958,2]
[333674331,1722340707568,-500.0,0.00010958,2]
[333674332,1722340707591,-500.0,0.00010958,2]
[333674333,1722340707614,-500.0,0.00010958,2]
[333674334,1722340707638,-500.0,0.00010958,2]
[333674335,1722340707661,-500.0,0.00010958,2]
[333674336,1722340707684,-500.0,0.00010958,2]
[333674337,1722340707709,-500.0,0.00010958,2]
[333674338,1722340707730,-500.0,0.00010958,2]
[333674339,1722340707752,-357.67023391,0.00010958,2]
[333674340,1722340707775,-500.0,0.00010958,2]
[333674341,1722340707797,-500.0,0.00010958,2]
[333674342,1722340707820,-500.0,0.00010958,2]
[333674343,1722340707842,-521.1,0.00010958,2]
[333674344,1722340707864,-500.0,0.00010958,2]
[333674345,1722340707886,-500.0,0.00010958,2]
[333674346,1722340707910,-500.0,0.00010958,2]
[333674347,1722340707932,-168.88,0.00010958,2]
[333674348,1722340707955,-508.51454911,0.00010958,2]
[333674349,1722340707977,-500.0,0.00010958,2]
[333674350,1722340708000,-500.0,0.00010958,2]
[333674351,1722340708022,-500.0,0.00010958,2]
[333674352,1722340708046,-550.55242279,0.00010958,2]
[333674353,1722340708071,-500.0,0.00010958,2]
[333674354,1722340708096,-500.0,0.00010958,2]
[333674355,1722340708119,-500.0,0.00010958,2]
[333674356,1722340708142,-500.0,0.00010958,2]
[333674357,1722340708164,-500.0,0.00010958,2]
[333674358,1722340708187,-158.10755933,0.00010958,2]
[333674359,1722340708212,-500.0,0.00010958,2]
[333674360,1722340708234,-227.8568377,0.00010958,2]
[333674361,1722340708258,-500.0,0.00010958,2]
[333674362,1722340708280,-501.29532298,0.00010958,2]
[333674363,1722340708304,-500.0,0.00010958,2]
[333674364,1722340708327,-265.15447921,0.00010958,2]
[333674365,1722340708350,-500.0,0.00010958,2]
[333674366,1722340708371,-500.0,0.00010958,2]
[333674367,1722340708394,-500.0,0.00010958,2]
[333674368,1722340708417,-219.13928548,0.00010958,2]
[333674369,1722340708440,-500.0,0.00010958,2]
[333674370,1722340708463,-500.0,0.00010958,2]
[333674371,1722340708486,-152.0495623,0.00010958,2]
[333674372,1722340708508,-500.0,0.00010958,2]
[333674373,1722340708531,-500.0,0.00010958,2]
[333674374,1722340708719,-500.0,0.00010958,2]
[333674375,1722340708740,-500.0,0.00010958,2]
[333674376,1722340708761,-500.0,0.00010958,2]
[333674377,1722340708783,-500.0,0.00010958,2]
[333674378,1722340708805,-500.0,0.00010958,2]
[333674379,1722340708826,-500.0,0.00010958,2]
[333674380,1722340708847,-500.0,0.00010958,2]
[333674381,1722340708869,-408.91,0.00010958,2]
[333674382,1722340708890,-237.13,0.00010958,2]
[333674383,1722340708914,-500.0,0.00010958,2]
[333674384,1722340708936,-500.0,0.00010958,2]
[333674385,1722340708958,-500.0,0.00010958,2]
[333674386,1722340708980,-500.0,0.00010958,2]
[333674387,1722340709001,-392.23,0.00010958,2]
[333674388,1722340709023,-500.0,0.00010958,2]
[333674389,1722340709044,-500.0,0.00010958,2]
[333674390,1722340709066,-500.0,0.00010958,2]
[333674391,1722340709087,-500.0,0.00010958,2]
[333674392,1722340709111,-500.0,0.00010958,2]
[333674393,1722340709132,-500.0,0.00010958,2]
[333674394,1722340709154,-500.0,0.00010958,2]
[333674395,1722340709176,-168.50627083,0.00010958,2]
[333674396,1722340709197,-356.58,0.00010958,2]
[333674397,1722340709218,-500.0,0.00010958,2]
[333674398,1722340709240,-500.0,0.00010958,2]
[333674399,1722340709260,-500.0,0.00010958,2]
[333674400,1722340709281,-306.41,0.00010958,2]
[333674401,1722340709303,-500.0,0.00010958,2]
[333674402,1722340709324,-500.0,0.00010958,2]
[333674403,1722340709346,-596.41470175,0.00010958,2]
[333674404,1722340709368,-500.0,0.00010958,2]
[333674405,1722340709389,-500.0,0.00010958,2]
[333674406,1722340709411,-500.0,0.00010958,2]
[333674407,1722340709432,-500.0,0.00010958,2]
[333674408,1722340709454,-500.0,0.00010958,2]
[333674409,1722340709475,-323.0,0.00010958,2]
[333674410,1722340709498,-500.0,0.00010958,2]
[333674411,1722340709520,-500.0,0.00010958,2]
[333674412,1722340709544,-500.0,0.00010958,2]
[333674413,1722340709567,-500.0,0.00010958,2]
[333674414,1722340709589,-1670.06,0.00010958,2]
[333674415,1722340709611,-1670.06,0.00010958,2]
[333674416,1722340709637,-1670.06,0.00010958,2]
[333674417,1722340709659,-1670.06,0.00010958,2]
[333674418,1722340709680,-1670.06,0.00010958,2]
[333674420,1722340709703,-1670.06,0.00010958,2]
[333674421,1722340709724,-1670.06,0.00010958,2]
[333674422,1722340709746,-1670.06,0.00010958,2]
[333674423,1722340709768,-1670.06,0.00010958,2]
[333674424,1722340709790,-1670.06,0.00010958,2]
[333674425,1722340709812,-1670.06,0.00010958,2]
[333674426,1722340709835,-500.0,0.00010958,2]
[333674427,1722340709858,-500.0,0.00010958,2]
[333674428,1722340709880,-500.0,0.00010958,2]
[333674429,1722340709902,-1670.06,0.00010958,2]
[333674430,1722340709923,-1670.06,0.00010958,2]
[333674431,1722340709945,-500.0,0.00010958,2]
[333674432,1722340709967,-1670.06,0.00010958,2]
[333674433,1722340709988,-1670.06,0.00010958,2]
[333674434,1722340710012,-1670.06,0.00010958,2]
[333674435,1722340710034,-1670.06,0.00010958,2]
[333674436,1722340710060,-1670.06,0.00010958,2]
[333674437,1722340710081,-1670.06,0.00010958,2]
[333674438,1722340710103,-1670.06,0.00010958,2]
[333674439,1722340710124,-1670.06,0.00010958,2]
[333674440,1722340710146,-1670.06,0.00010958,2]
[333674441,1722340710168,-1670.06,0.00010958,2]
[333674442,1722340710190,-1670.2180998,0.00010958,2]
[333674443,1722340710212,-322.01781981,0.00010958,2]
[333674444,1722340710234,-500.0,0.00010958,2]
[333674445,1722340710257,-500.0,0.00010958,2]
[333674446,1722340710279,-568.51573474,0.00010958,2]
[333674447,1722340710300,-500.0,0.00010958,2]
[333674448,1722340710324,-500.0,0.00010958,2]
[333674449,1722340710347,-500.0,0.00010958,2]
[333674450,1722340710370,-410.7280095,0.00010958,2]
[333674451,1722340710392,-500.0,0.00010958,2]
[333674452,1722340710414,-500.0,0.00010958,2]
[333674453,1722340710436,-500.0,0.00010958,2]
[333674454,1722340710458,-500.0,0.00010958,2]
[333674455,1722340710481,-500.0,0.00010958,2]
[333674456,1722340710502,-404.3656,0.00010958,2]
[333674457,1722340710523,-500.0,0.00010958,2]
[333674458,1722340710546,-500.0,0.00010958,2]
[333674459,1722340710567,-500.0,0.00010958,2]
[333674460,1722340710589,-167.32,0.00010958,2]
[333674461,1722340710611,-500.0,0.00010958,2]
[333674462,1722340710636,-474.28,0.00010958,2]
[333674463,1722340710658,-543.27253302,0.00010958,2]
[333674464,1722340710680,-588.09686888,0.00010958,2]
[333674465,1722340710706,-500.0,0.00010958,2]
[333674466,1722340710727,-410.75441827,0.00010958,2]
[333674467,1722340710749,-1628.42,0.00010958,2]
[333674468,1722340710771,-1628.42,0.00010958,2]
[333674469,1722340710794,-1628.42,0.00010958,2]
[333674470,1722340710816,-1628.42,0.00010958,2]
[333674471,1722340710837,-1628.42,0.00010958,2]
[333674472,1722340710858,-1628.42,0.00010958,2]
[333674473,1722340710880,-1628.42,0.00010958,2]
[333674474,1722340710901,-1628.42,0.00010958,2]
[333674475,1722340710922,-1628.42,0.00010958,2]
[333674476,1722340710943,-1628.42,0.00010958,2]
[333674477,1722340710964,-1628.42,0.00010958,2]
[333674478,1722340710986,-1628.42,0.00010958,2]
[333674479,1722340711008,-1628.42,0.00010958,2]
[333674480,1722340711030,-1628.42,0.00010958,2]
[333674481,1722340711052,-1628.42,0.00010958,2]
[333674482,1722340711074,-1628.42,0.00010958,2]
[333674483,1722340711096,-1628.42,0.00010958,2]
[333674484,1722340711117,-1628.42,0.00010958,2]
[333674485,1722340711138,-1628.42,0.00010958,2]
[333674486,1722340711159,-1628.42,0.00010958,2]
[333674487,1722340711180,-1628.42,0.00010958,2]
[333674488,1722340711202,-1628.42,0.00010958,2]
[333674489,1722340711223,-1628.42,0.00010958,2]
[333674490,1722340711245,-1628.57541483,0.00010958,2]
[333674491,1722340711266,-500.0,0.00010958,2]
[333674492,1722340711287,-523.63922157,0.00010958,2]
[333674493,1722340711310,-500.0,0.00010958,2]
[333674494,1722340711331,-500.0,0.00010958,2]
[333674495,1722340711353,-500.0,0.00010958,2]
[333674496,1722340711374,-500.0,0.00010958,2]
[333674497,1722340711395,-500.0,0.00010958,2]
[333674498,1722340711416,-500.0,0.00010958,2]
[333674499,1722340711438,-500.0,0.00010958,2]
[333674500,1722340711459,-500.0,0.00010958,2]
[333674501,1722340711480,-500.0,0.00010958,2]
[333674502,1722340711501,-500.0,0.00010958,2]
[333674503,1722340711522,-500.0,0.00010958,2]
[333674504,1722340711545,-500.0,0.00010958,2]
[333674505,1722340711566,-500.0,0.00010958,2]
[333674506,1722340711587,-500.0,0.00010958,2]
[333674507,1722340711608,-500.0,0.00010958,2]
[333674508,1722340711633,-500.0,0.00010958,2]
[333674509,1722340711653,-500.0,0.00010958,2]
[333674510,1722340711676,-500.0,0.00010958,2]
[333674511,1722340711698,-500.0,0.00010958,2]
[333674512,1722340711720,-500.0,0.00010958,2]
[333674513,1722340711741,-7294.29,0.00010958,2]
[333674514,1722340711763,-500.0,0.00010958,2]
[333674515,1722340711786,-500.0,0.00010958,2]
[333674516,1722340711808,-499.99,0.00010958,2]
[333674517,1722340711830,-647.97975682,0.00010958,2]
[333674518,1722340711851,-500.0,0.00010958,2]
[333674519,1722340711873,-500.0,0.00010958,2]
[333674520,1722340711894,-500.0,0.00010958,2]
[333674521,1722340711915,-500.0,0.00010958,2]
[333674522,1722340712081,-500.0,0.00010958,2]
[333674523,1722340712102,-500.0,0.00010958,2]
[333674524,1722340712125,-362.67454776,0.00010958,2]
[333674525,1722340712146,-516.75910365,0.00010958,2]
[333674526,1722340712168,-525.73100847,0.00010958,2]
[333674527,1722340712190,-500.0,0.00010958,2]
[333674528,1722340712213,-500.0,0.00010958,2]
[333674529,1722340712237,-500.0,0.00010958,2]
[333674530,1722340712259,-500.0,0.00010958,2]
[333674531,1722340712280,-500.0,0.00010958,2]
[333674532,1722340712304,-500.0,0.00010958,2]
[333674533,1722340712327,-500.0,0.00010958,2]
[333674534,1722340712350,-500.0,0.00010958,2]
[333674535,1722340712373,-500.0,0.00010958,2]
[333674536,1722340712395,-500.0,0.00010958,2]
[333674537,1722340712416,-500.0,0.00010958,2]
[333674538,1722340712439,-500.0,0.00010958,2]
[333674539,1722340712462,-500.0,0.00010958,2]
[333674540,1722340712486,-500.0,0.00010958,2]
[333674541,1722340712508,-533.0595,0.00010958,2]
[333674542,1722340712530,-500.0,0.00010958,2]
[333674543,1722340712552,-500.0,0.00010958,2]
[333674544,1722340712574,-500.0,0.00010958,2]
[333674545,1722340712595,-500.0,0.00010958,2]
[333674546,1722340712619,-514.7126613,0.00010958,2]
[333674547,1722340712640,-500.0,0.00010958,2]
[333674548,1722340712663,-500.0,0.00010958,2]
[333674549,1722340712688,-500.0,0.00010958,2]
[333674550,1722340712713,-500.0,0.00010958,2]
[333674551,1722340712734,-500.0,0.00010958,2]
[333674552,1722340712755,-500.0,0.00010958,2]
[333674553,1722340712776,-500.0,0.00010958,2]
[333674554,1722340712797,-500.0,0.00010958,2]
[333674555,1722340712819,-254.31387548,0.00010958,2]
[333674556,1722340712841,-500.0,0.00010958,2]
[333674557,1722340712864,-500.0,0.00010958,2]
[333674558,1722340712885,-219.46,0.00010958,2]
[333674559,1722340712906,-500.0,0.00010958,2]
[333674560,1722340712927,-500.0,0.00010958,2]
[333674561,1722340712948,-500.0,0.00010958,2]
[333674562,1722340712969,-500.0,0.00010958,2]
[333674563,1722340712991,-500.0,0.00010958,2]
[333674564,1722340713014,-229.11573921,0.00010958,2]
[333674565,1722340713037,-222.3625254,0.00010958,2]
[333674566,1722340713061,-500.0,0.00010958,2]
[333674567,1722340713087,-500.0,0.00010958,2]
[333674568,1722340713109,-500.0,0.00010958,2]
[333674569,1722340713131,-500.0,0.00010958,2]
[333674570,1722340713155,-500.0,0.00010958,2]
[333674571,1722340713179,-500.0,0.00010958,2]
[333674572,1722340713203,-500.0,0.00010958,2]
[333674573,1722340713227,-500.0,0.00010958,2]
[333674574,1722340713250,-500.0,0.00010958,2]
[333674575,1722340713274,-500.0,0.00010958,2]
[333674576,1722340713299,-500.0,0.00010958,2]
[333674577,1722340713325,-400.80739737,0.00010958,2]
[333674578,1722340713348,-500.0,0.00010958,2]
[333674579,1722340713373,-500.0,0.00010958,2]
[333674580,1722340713398,-500.0,0.00010958,2]
[333674581,1722340713423,-500.0,0.00010958,2]
[333674582,1722340713447,-500.0,0.00010958,2]
[333674583,1722340713472,-500.0,0.00010958,2]
[333674584,1722340713497,-180.47,0.00010958,2]
[333674585,1722340713521,-500.0,0.00010958,2]
[333674586,1722340713546,-466.98831512,0.00010958,2]
[333674587,1722340713569,-500.0,0.00010958,2]
[333674588,1722340713591,-500.0,0.00010958,2]
[333674589,1722340713615,-500.0,0.00010958,2]
[333674590,1722340713640,-500.0,0.00010958,2]
[333674591,1722340713665,-500.0,0.00010958,2]
[333674592,1722340713688,-500.0,0.00010958,2]
[333674593,1722340713714,-500.0,0.00010958,2]
[333674594,1722340713737,-500.0,0.00010958,2]
[333674595,1722340713759,-500.0,0.00010958,2]
[333674596,1722340713783,-500.0,0.00010958,2]
[333674597,1722340713810,-500.0,0.00010958,2]
[333674598,1722340713833,-500.0,0.00010958,2]
[333674599,1722340713856,-500.0,0.00010958,2]
[333674600,1722340713879,-500.0,0.00010958,2]
[333674601,1722340713903,-500.0,0.00010958,2]
[333674602,1722340713926,-500.0,0.00010958,2]
[333674603,1722340713948,-500.0,0.00010958,2]
[333674604,1722340713970,-500.0,0.00010958,2]
[333674605,1722340713992,-500.0,0.00010958,2]
[333674606,1722340714014,-500.0,0.00010958,2]
[333674607,1722340714036,-500.0,0.00010958,2]
[333674608,1722340714060,-500.0,0.00010958,2]
[333674609,1722340714084,-500.0,0.00010958,2]
[333674610,1722340714106,-500.0,0.00010958,2]
[333674611,1722340714129,-500.0,0.00010958,2]
[333674612,1722340714151,-500.0,0.00010958,2]
[333674613,1722340714174,-500.0,0.00010958,2]
[333674614,1722340714196,-500.0,0.00010958,2]
[333674615,1722340714217,-212.64,0.00010958,2]
[333674616,1722340714239,-500.0,0.00010958,2]
[333674617,1722340714261,-500.0,0.00010958,2]
[333674618,1722340714283,-500.0,0.00010958,2]
[333674619,1722340714305,-500.0,0.00010958,2]
[333674620,1722340714327,-463.28932705,0.00010958,2]
[333674621,1722340714350,-500.0,0.00010958,2]
[333674622,1722340714373,-500.0,0.00010958,2]
[333674623,1722340714395,-500.0,0.00010958,2]
[333674624,1722340714418,-278.32,0.00010958,2]
[333674625,1722340714441,-500.0,0.00010958,2]
[333674626,1722340714461,-500.0,0.00010958,2]
[333674627,1722340714485,-500.0,0.00010958,2]
[333674628,1722340714507,-500.0,0.00010958,2]
[333674629,1722340714529,-500.0,0.00010958,2]
[333674630,1722340714552,-500.0,0.00010958,2]
[333674631,1722340714575,-511.34,0.00010958,2]
[333674632,1722340714598,-500.0,0.00010958,2]
[333674633,1722340714622,-500.0,0.00010958,2]
[333674634,1722340714644,-500.0,0.00010958,2]
[333674635,1722340714667,-515.79432418,0.00010958,2]
[333674636,1722340714690,-210.05122625,0.00010958,2]
[333674637,1722340714713,-505.17,0.00010958,2]
[333674638,1722340714735,-534.32437207,0.00010958,2]
[333674639,1722340714756,-500.0,0.00010959,2]
[333674640,1722340714777,-1000.0,0.00010959,2]
[333674641,1722340714800,-1000.0,0.00010959,2]
[333674642,1722340714824,-1000.0,0.00010959,2]
[333674643,1722340714845,-200.0,0.00010959,2]
[333674644,1722340714866,-3055.97,0.00010959,2]
[333674645,1722340714887,-251.83,0.00010959,2]
[333674646,1722340714908,-250.0,0.00010959,2]
[333674647,1722340714929,-522.93,0.00010959,2]
[333674648,1722340714949,-435.78,0.00010959,2]
[333674649,1722340714970,-363.15,0.00010959,2]
[333674650,1722340714991,-302.62,0.00010959,2]
[333674651,1722340715014,-252.19,0.00010959,2]
[333674652,1722340715035,-46392.05232314,0.00010967,2]
[333674653,1722340715058,-5233.77588146,0.00010997,2]
[333674654,1722340715078,-500.0,0.00010998,2]
[333674655,1722340715098,-2274.79010482,0.00010998,2]
[333674656,1722340715119,-759.76,0.00010999,2]
[333674657,1722340715142,-759.76,0.00010999,2]
[333674658,1722340715163,-759.76,0.00010999,2]
[333674659,1722340715184,-759.76,0.00010999,2]
[333674660,1722340715206,-759.76,0.00010999,2]
[333674661,1722340715228,-759.76,0.00010999,2]
[333674662,1722340715250,-759.76,0.00010999,2]
[333674663,1722340715272,-759.76,0.00010999,2]
[333674664,1722340715293,-759.76,0.00010999,2]
[333674665,1722340715314,-759.76,0.00010999,2]
[333674666,1722340715335,-759.76,0.00010999,2]
[333674667,1722340715356,-759.76,0.00010999,2]
[333674668,1722340715378,-759.76,0.00010999,2]
[333674669,1722340715399,-759.76,0.00010999,2]
[333674670,1722340715557,-759.76,0.00010999,2]
[333674671,1722340715586,-500.0,0.00010999,2]
[333674672,1722340715608,-759.76,0.00010999,2]
[333674673,1722340715631,-500.0,0.00010999,2]
[333674674,1722340715653,-759.76,0.00010999,2]
[333674675,1722340715674,-500.0,0.00010999,2]
[333674676,1722340715696,-759.76,0.00010999,2]
[333674677,1722340715716,-500.0,0.00010999,2]
[333674678,1722340715737,-759.76,0.00010999,2]
[333674679,1722340715760,-514.23791337,0.00010999,2]
[333674680,1722340715783,-759.76,0.00010999,2]
[333674681,1722340715805,-759.83930429,0.00010999,2]
[333674682,1722340715829,-199.34953408,0.00010999,2]
[333674683,1722340715853,-530.09,0.00010999,2]
[333674684,1722340715877,-530.09,0.00010999,2]
[333674685,1722340715900,-530.09,0.00010999,2]
[333674686,1722340715921,-530.09,0.00010999,2]
[333674687,1722340715942,-530.09,0.00010999,2]
[333674688,1722340715963,-530.09,0.00010999,2]
[333674689,1722340715986,-530.09,0.00010999,2]
[333674690,1722340716008,-530.09,0.00010999,2]
[333674691,1722340716039,-530.09,0.00010999,2]
[333674692,1722340716063,-530.09,0.00010999,2]
[333674693,1722340716087,-530.09,0.00010999,2]
[333674694,1722340716109,-530.09,0.00010999,2]
[333674695,1722340716134,-530.09,0.00010999,2]
[333674696,1722340716155,-530.09,0.00010999,2]
[333674697,1722340716178,-530.09,0.00010999,2]
[333674698,1722340716200,-530.09,0.00010999,2]
[333674699,1722340716224,-530.09,0.00010999,2]
[333674700,1722340716247,-530.09,0.00010999,2]
[333674701,1722340716268,-530.09,0.00010999,2]
[333674702,1722340716291,-530.09,0.00010999,2]
[333674703,1722340716313,-530.26518546,0.00010999,2]
[333674704,1722340716339,-500.0,0.00010999,2]
[333674705,1722340716362,-358.6826185,0.00010999,2]
[333674706,1722340716385,-366.1916933,0.00010999,2]
[333674707,1722340716407,-500.0,0.00010999,2]